bitfinex/quotes_ETHUSD_20250924
["timestamp","ask_amount","ask_price","bid_price","bid_amount"]
[1758686770470,0.00100001,4138.9,4138.8,2.41615927]
[1758686770667,0.00100001,4138.9,4138.8,3.08775927]
[1758686771216,0.00100001,4138.9,4138.8,3.11192086]
[1758686771568,0.00100001,4138.9,4138.8,3.08775927]
[1758686773208,0.00100001,4138.9,4138.8,8.97295927]
[1758686774014,0.00100001,4138.9,4138.8,9.41065927]
[1758686777311,0.24420001,4138.9,4138.8,4.222]
[1758686777488,0.24420001,4138.9,4137.7,0.2317]
[1758686777489,0.68430001,4138.9,4137.7,0.2317]
[1758686777688,0.68430001,4138.9,4138.1,2.41651727]
[1758686778020,0.2432,4138.8,4137.2,0.2317]
[1758686778187,0.6833,4138.8,4137.8,2.41669357]
[1758686778394,3.09946347,4138.8,4138.0,2.41662082]
[1758686778735,2.41622221,4138.7,4138.1,5.653]
[1758686778917,0.792,4138.7,4138.1,5.653]
[1758686779122,0.6833,4138.8,4138.1,5.653]
[1758686779431,0.1208,4138.6,4138.1,5.653]
[1758686779805,0.2432,4138.5,4138.1,8.06955529]
[1758686780035,0.2432,4138.5,4138.1,5.653]
[1758686780185,0.4401,4138.5,4138.1,5.653]
[1758686780649,0.6833,4138.5,4138.1,5.653]
[1758686781087,0.792,4138.3,4136.9,0.4377]
[1758686781443,0.6833,4138.2,4137.4,2.41697684]
[1758686781647,0.6833,4138.2,4137.5,4.221]
[1758686781791,2.41658259,4138.1,4137.5,4.221]
[1758686782003,2.41663166,4138.0,4137.5,4.221]
[1758686782203,0.792,4137.8,4136.5,0.2317]
[1758686782500,0.2432,4137.9,4136.6,6.7497]
[1758686782836,3.0,4138.6,4136.3,0.2317]
[1758686782837,0.792,4137.7,4136.3,0.2317]
[1758686783138,0.6833,4137.6,4136.8,2.41731672]
[1758686783335,0.6833,4137.6,4136.9,4.24417268]
[1758686783504,0.6833,4137.6,4136.9,4.22]
[1758686783701,3.2085351,4138.2,4136.9,4.22]
[1758686783702,0.792,4138.0,4137.0,0.2317]
[1758686784032,0.37907261,4137.9,4137.4,2.41693888]
[1758686784195,0.37907261,4137.9,4137.5,6.63491649]
[1758686784409,0.37907261,4137.9,4137.6,2.091]
[1758686784614,0.37907261,4137.9,4137.7,2.4168016]
[1758686784845,0.4849115,4138.8,4137.7,0.2317]
[1758686785027,0.4849115,4138.8,4137.8,2.41674319]
[1758686785028,0.3790244,4138.5,4137.8,2.41674319]
[1758686785223,1.0623244,4138.5,4137.9,4.217]
[1758686785417,0.35695631,4138.4,4138.0,4.217]
[1758686785614,0.792,4138.2,4137.4,2.4169199]
[1758686785853,1.4753,4138.2,4137.5,6.308]
[1758686786214,1.4753,4138.2,4137.5,8.72490866]
[1758686786412,0.35720726,4138.1,4137.5,8.72490866]
[1758686786638,1.4753,4138.2,4137.5,8.72490866]
[1758686786836,3.45711228,4138.1,4137.5,6.308]
[1758686787048,0.792,4137.9,4136.7,0.2317]
[1758686787347,0.792,4137.9,4136.8,4.745]
[1758686787524,0.792,4138.0,4136.9,0.25587268]
[1758686787730,0.792,4138.0,4137.5,2.41686647]
[1758686787949,0.792,4138.0,4137.6,6.63184748]
[1758686788191,1.32413845,4138.8,4137.7,4.4467]
[1758686788457,0.792,4138.6,4138.0,2.41660654]
[1758686788619,0.87197427,4138.5,4138.1,6.63052116]
[1758686788940,0.35733512,4138.4,4138.1,4.214]
[1758686789141,0.6818115,4138.8,4138.2,2.41650959]
[1758686789316,0.87213318,4138.7,4138.3,2.41639758]
[1758686789513,0.87213318,4138.7,4138.2,0.02416509]
[1758686789514,0.35742523,4138.6,4138.4,4.507385]
[1758686789744,0.35742523,4138.5,4138.4,4.507385]
[1758686790019,0.35742523,4138.5,4138.4,6.304]
[1758686791128,0.364,4138.7,4138.4,6.304]
[1758686791451,0.35739517,4138.6,4138.5,2.4163325]
[1758686791652,0.35739517,4138.6,4138.4,6.304]
[1758686791837,0.1208,4138.7,4138.4,6.304]
[1758686792056,0.2432,4138.5,4138.4,6.304]
[1758686792446,0.1208,4138.7,4138.4,6.304]
[1758686792651,0.00100001,4138.9,4138.4,6.304]
[1758686792852,0.00100001,4138.9,4138.7,2.41621765]
[1758686793049,0.00100001,4138.9,4138.8,6.62315927]
[1758686793274,0.00100001,4138.9,4138.8,4.207]
[1758686793771,0.00100001,4138.9,4138.8,6.62315927]
[1758686793973,0.00100001,4138.9,4138.8,6.85485927]
[1758686794185,0.00100001,4138.9,4138.8,7.29255927]
[1758686794873,0.00100001,4138.9,4138.8,6.85485927]
[1758686795441,0.00100001,4138.9,4138.8,2.41615927]
[1758686795680,0.00100001,4138.9,4138.8,8.71215927]
[1758686796903,0.792,4138.8,4137.6,0.004]
[1758686797040,1.43559541,4138.0,4137.6,0.004]
[1758686797239,6.2088016,4137.7,4137.6,0.004]
[1758686797542,6.2088016,4137.7,4136.0,2.42175314]
[1758686797543,3.20909368,4137.2,4136.0,0.004]
[1758686798186,4.76460743,4136.2,4136.1,0.02]
[1758686798494,5.03243214,4136.2,4136.1,0.02]
[1758686798861,2.61475408,4136.2,4136.1,0.02]
[1758686799081,1.83223613,4136.2,4136.1,0.02]
[1758686799383,1.60926207,4136.2,4136.1,0.02]
[1758686799600,4.02694013,4136.2,4136.1,0.02]
[1758686799774,0.81726207,4136.2,4136.1,0.02]
[1758686800297,3.10097806,4136.2,4136.1,0.02]
[1758686800487,0.6833,4136.2,4136.1,0.02]
[1758686801015,0.37922572,4136.3,4136.1,0.02]
[1758686801475,0.37922572,4136.3,4136.1,4.252]
[1758686801796,0.792,4136.8,4136.1,4.252]
[1758686801983,1.17119811,4136.8,4136.2,2.11517678]
[1758686802164,1.17119811,4136.8,4136.2,2.091]
[1758686802360,1.17119811,4136.8,4136.2,2.11517678]
[1758686802598,0.37919811,4136.8,4136.3,4.231]
[1758686803802,0.4362,4137.4,4136.5,2.41749996]
[1758686804003,0.4362,4137.4,4136.4,0.2381]
[1758686804163,0.37916112,4137.3,4136.5,2.44164936]
[1758686804366,0.37916112,4137.3,4136.5,0.02417502]
[1758686804602,0.37916112,4137.3,4136.6,2.41738819]
[1758686804802,0.37916112,4137.3,4137.0,2.41720038]
[1758686805102,0.35619204,4137.9,4137.1,6.319]
[1758686805400,0.37579832,4137.7,4137.1,6.319]
[1758686806464,0.792,4137.4,4135.7,0.02714147]
[1758686806669,3.792,4137.2,4135.7,0.02714147]
[1758686806868,0.1208,4136.3,4136.0,2.833]
[1758686807105,2.41767806,4136.2,4136.0,2.833]
[1758686807329,0.6664,4136.2,4136.0,2.833]
[1758686807806,3.08407806,4136.2,4136.0,2.833]
[1758686809423,3.08407806,4136.2,4136.0,4.261]
[1758686811557,2.53842498,4136.3,4136.0,4.261]
[1758686811905,0.7872,4136.3,4136.0,4.261]
[1758686812220,0.792,4136.6,4136.0,4.261]
[1758686812420,2.41758741,4136.4,4136.0,4.261]
[1758686812616,2.76851093,4136.5,4136.0,4.261]
[1758686812821,0.2302,4136.4,4136.0,4.261]
[1758686813017,0.37920664,4136.6,4136.2,0.1208]
[1758686813218,0.37920664,4136.6,4136.3,4.252]
[1758686813446,0.37920664,4136.6,4136.3,6.344]
[1758686813955,3.20474873,4136.5,4136.3,4.253]
[1758686814157,0.6664,4136.4,4136.3,4.253]
[1758686814341,3.08396116,4136.4,4136.3,4.253]
[1758686814747,0.792,4136.3,4136.0,0.004]
[1758686814951,2.41767806,4136.2,4136.1,2.464]
[1758686815161,2.53847806,4136.2,4136.1,2.464]
[1758686815362,2.76867806,4136.2,4136.1,2.464]
[1758686815565,2.76867806,4136.2,4136.1,0.02]
[1758686815867,0.1208,4136.2,4136.1,4.282]
[1758686816435,0.792,4136.5,4136.1,4.282]
[1758686816682,0.1208,4136.4,4136.1,4.282]
[1758686816878,0.37920664,4136.6,4136.2,0.6853]
[1758686817184,0.37920664,4136.6,4136.2,3.10297115]
[1758686817331,0.37920664,4136.6,4136.3,2.41759312]
[1758686817532,0.37920664,4136.6,4136.3,2.65569452]
[1758686817771,0.37920664,4136.6,4136.5,2.41750271]
[1758686817971,0.13365453,4137.4,4136.6,2.41743749]
[1758686818292,0.46764641,4137.4,4136.7,2.092]
[1758686818474,0.792,4137.4,4136.7,4.50938148]
[1758686818643,0.792,4137.5,4136.7,4.509333]
[1758686818838,0.792,4137.5,4136.7,2.092]
[1758686819169,0.2302,4137.8,4136.7,2.092]
[1758686819373,0.13370031,4137.8,4136.8,0.4472]
[1758686819586,0.792,4137.8,4137.1,2.41710439]
[1758686819741,0.19631094,4137.7,4137.2,4.255]
[1758686819942,0.37910941,4137.9,4137.4,2.41697388]
[1758686820367,2.41658504,4138.1,4137.2,6.67208305]
[1758686820686,0.792,4138.0,4137.3,2.44119167]
[1758686820858,2.41634029,4138.5,4137.4,0.2381]
[1758686821047,0.35661266,4138.4,4137.6,2.41685773]
[1758686821384,6.41484927,4138.4,4137.7,4.253]
[1758686821543,3.0,4138.2,4137.4,0.2381]
[1758686821749,0.6418047,4138.4,4137.5,0.655]
[1758686821981,2.41650959,4138.2,4137.5,0.655]
[1758686822192,0.37905252,4138.2,4137.5,3.07190044]
[1758686822577,2.79558628,4138.2,4137.5,0.655]
[1758686822779,0.792,4138.1,4137.6,4.249]
[1758686823292,0.792,4138.1,4137.6,6.6900011]
[1758686823610,0.37905252,4138.2,4137.6,4.249]
[1758686823759,0.37905252,4138.2,4137.6,4.4871]
[1758686824271,0.13385222,4138.1,4137.6,4.4871]
[1758686824469,0.37905252,4138.2,4137.6,4.249]
[1758686824671,0.13394216,4138.1,4137.6,4.249]
[1758686824870,0.13394216,4138.1,4137.3,0.2381]
[1758686824871,0.92593891,4138.1,4137.3,0.2381]
[1758686825070,0.792,4137.9,4137.4,0.659]
[1758686825289,3.20881045,4137.7,4137.4,0.659]
[1758686825464,2.64706111,4137.6,4137.4,0.659]
[1758686825674,0.2302,4137.6,4137.4,0.659]
[1758686825879,0.792,4137.9,4137.4,0.659]
[1758686826086,2.79595803,4137.6,4137.4,0.659]
[1758686826254,0.37908958,4137.6,4137.4,0.659]
[1758686827009,0.37908958,4137.6,4137.1,0.1208]
[1758686827010,2.7960032,4137.6,4137.1,0.1208]
[1758686827295,0.13415427,4137.5,4137.4,4.245]
[1758686827599,0.37908958,4137.6,4137.4,4.4791]
[1758686827785,0.37908958,4137.6,4135.6,0.004]
[1758686827786,0.792,4137.2,4135.6,0.004]
[1758686827970,0.792,4136.5,4135.7,4.29414147]
[1758686828161,0.13412542,4136.4,4135.7,4.29414147]
[1758686828366,0.2302,4136.4,4135.7,4.29414147]
[1758686829394,0.13403889,4136.3,4135.7,4.29414147]
[1758686829593,0.6664,4136.4,4135.7,4.29414147]
[1758686829910,0.36423822,4136.3,4135.7,4.29414147]
[1758686830212,0.13403822,4136.2,4135.7,4.29414147]
[1758686831474,0.6664,4136.3,4135.7,4.29414147]
[1758686832314,4.56090613,4136.2,4135.7,0.02714147]
[1758686832477,4.25251322,4136.2,4135.7,0.02714147]
[1758686833079,1.83483516,4136.2,4135.7,0.02714147]
[1758686833601,1.83483516,4136.2,4134.2,2.41881748]
[1758686833602,6.02056584,4135.8,4132.1,0.02]
[1758686833829,1.30606055,4132.6,4131.1,0.02]
[1758686834126,3.0,4131.8,4131.1,0.02]
[1758686834334,0.792,4131.3,4131.1,0.02]
[1758686834483,4.30667455,4131.2,4131.1,0.02]
[1758686834679,1.52887712,4131.2,4131.1,0.02]
[1758686835206,0.73687712,4131.2,4131.1,0.02]
[1758686836413,0.22220257,4131.2,4131.1,6.47816277]
[1758686836616,0.37964389,4132.0,4131.7,2.42030688]
[1758686836800,0.51023669,4131.9,4131.1,0.2505]
[1758686837119,0.37964389,4132.0,4131.8,2.42024892]
[1758686837341,2.22967802,4131.9,4131.6,4.318]
[1758686837540,0.73097802,4131.8,4131.7,2.42031125]
[1758686837687,0.5097771,4131.8,4131.7,2.42031125]
[1758686838091,0.5097771,4131.8,4131.7,2.65081125]
[1758686838365,0.1208,4132.1,4132.0,2.42013552]
[1758686838494,0.6300404,4132.1,4132.0,2.42013552]
[1758686838692,0.6300404,4132.1,4132.0,8.83113552]
[1758686839336,0.6370262,4132.7,4132.5,2.41984271]
[1758686839536,1.10011151,4133.0,4132.5,2.41981989]
[1758686839537,0.62974898,4132.6,4132.5,2.41981989]
[1758686839746,0.36328882,4132.5,4132.3,2.41990505]
[1758686840038,0.36328882,4132.5,4132.4,6.408]
[1758686840191,0.87225802,4132.5,4132.4,8.82790126]
[1758686840394,3.0,4132.4,4130.4,0.2305]
[1758686840745,0.6370262,4131.8,4131.7,2.42031125]
[1758686840903,0.50867669,4131.8,4131.7,8.83027212]
[1758686841108,0.6370262,4132.4,4131.9,2.42016635]
[1758686841320,0.72928386,4132.3,4131.8,2.42025267]
[1758686841636,0.50859529,4132.2,4131.9,2.65069409]
[1758686841822,0.36328882,4132.5,4132.4,2.41990126]
[1758686842021,0.87181609,4132.5,4132.4,4.316]
[1758686842325,0.87181609,4132.5,4132.4,6.409]
[1758686842494,0.87181609,4132.5,4132.4,8.82890126]
[1758686843241,0.36328882,4132.5,4132.4,9.05940126]
[1758686845299,0.6370262,4133.4,4133.3,2.41937434]
[1758686845512,0.50834742,4133.4,4133.3,8.82237434]
[1758686845707,0.50834742,4133.4,4133.3,6.72837434]
[1758686846007,0.50834742,4133.4,4133.3,8.82237434]
[1758686846694,0.50834742,4133.4,4133.3,6.4]
[1758686846893,0.50834742,4133.4,4133.3,8.81937434]
[1758686847346,0.50834742,4133.4,4133.3,2.41937434]
[1758686847650,1.14390786,4133.4,4133.3,9.04787434]
[1758686847934,0.50834742,4133.4,4133.3,9.04787434]
[1758686848092,0.50934742,4133.4,4133.3,2.41937434]
[1758686848297,1.14490786,4133.4,4133.3,8.81537434]
[1758686848715,1.14490786,4133.4,4133.3,6.72137434]
[1758686849027,1.14490786,4133.4,4133.3,8.81537434]
[1758686849356,0.50934742,4133.4,4133.3,8.81537434]
[1758686849860,0.50934742,4133.4,4133.3,6.72137434]
[1758686850010,0.50934742,4133.4,4133.3,8.81537434]
[1758686851047,0.50934742,4133.4,4133.3,9.29467434]
[1758686851254,0.001,4133.4,4133.3,9.29467434]
[1758686851418,0.001,4133.4,4133.3,9.16667434]
[1758686851615,0.001,4133.4,4133.3,0.1208]
[1758686851828,1.21691697,4133.4,4133.3,1.118]
[1758686852220,1.36352848,4133.4,4133.3,1.118]
[1758686852522,0.51021697,4133.4,4133.3,3.53737434]
[1758686853040,1.14707329,4133.4,4133.3,3.53737434]
[1758686853357,0.51021697,4133.4,4133.3,3.53737434]
[1758686853558,1.1476766,4133.4,4131.1,0.02]
[1758686853854,3.27001174,4131.9,4131.4,1.118]
[1758686854053,3.1506236,4131.9,4131.1,0.02]
[1758686854253,4.6493236,4131.9,4131.6,2.229]
[1758686854451,3.50409384,4131.9,4131.6,2.229]
[1758686854839,2.22912951,4131.9,4131.6,2.229]
[1758686855031,4.6493236,4131.9,4131.6,2.229]
[1758686855232,0.792,4131.8,4131.6,2.229]
[1758686855448,2.71272667,4131.7,4131.6,2.229]
[1758686855854,1.43712951,4131.7,4131.6,2.229]
[1758686856054,1.43712951,4131.7,4131.1,0.02]
[1758686856246,1.43712951,4131.6,4131.4,4.355]
[1758686856445,1.21591697,4131.5,4131.4,4.355]
[1758686856960,1.21591697,4131.5,4131.4,4.354]
[1758686857171,1.43773735,4131.5,4131.4,4.354]
[1758686857367,2.71333451,4131.5,4131.4,4.354]
[1758686857956,2.00663451,4131.5,4131.4,4.354]
[1758686858271,2.00663451,4131.5,4131.3,0.02820545]
[1758686858272,1.21591697,4131.5,4131.3,0.004]
[1758686858430,2.00931692,4131.4,4131.3,2.098]
[1758686858636,0.73113683,4131.4,4131.3,4.826]
[1758686858833,0.73113683,4131.4,4131.3,4.353]
[1758686859041,2.00931692,4131.4,4131.3,4.353]
[1758686860270,0.73113683,4131.4,4131.3,4.353]
[1758686862288,2.44274471,4131.4,4131.3,2.38886537]
[1758686862490,2.44274471,4131.4,4131.3,4.339]
[1758686862985,0.73113683,4131.4,4131.3,4.339]
[1758686863193,2.44274471,4131.4,4131.3,4.339]
[1758686863506,2.44274471,4131.4,4130.4,4.336]
[1758686863507,0.792,4130.9,4130.4,4.336]
[1758686863801,1.7127028,4130.6,4130.4,4.336]
[1758686864103,0.73113683,4130.5,4130.1,0.02]
[1758686864286,2.57763146,4130.4,4130.2,1.141]
[1758686864486,2.57763146,4130.3,4130.2,1.141]
[1758686864685,3.27873146,4130.3,4130.1,0.02]
[1758686864887,0.86492866,4130.2,4130.1,0.02]
[1758686865087,1.56602866,4130.2,4130.1,0.02]
[1758686865406,1.56602866,4130.2,4129.2,2.42176879]
[1758686865407,0.792,4130.1,4128.3,4.337]
[1758686865572,1.71119016,4129.2,4128.9,4.337]
[1758686865768,0.73113683,4129.2,4129.1,2.68663526]
[1758686866167,0.73113683,4129.2,4129.1,0.2648]
[1758686866507,0.73113683,4129.2,4129.1,9.57653526]
[1758686866805,1.15049748,4129.2,4129.1,9.57653526]
[1758686866964,0.85498523,4129.7,4129.2,2.42174543]
[1758686867163,0.85498523,4130.2,4129.5,2.42156951]
[1758686867392,0.22264219,4130.1,4130.0,2.4213075]
[1758686867575,0.22264219,4130.1,4130.0,7.4610075]
[1758686867880,0.22264219,4130.1,4130.0,3.1130075]
[1758686868367,0.22264219,4130.1,4130.0,9.3102075]
[1758686868799,0.85498523,4130.6,4130.0,5.0387]
[1758686869003,0.22256727,4130.5,4130.4,2.42107301]
[1758686869300,0.22256727,4130.5,4129.6,2.42150285]
[1758686869476,0.85498523,4130.1,4129.7,6.76647636]
[1758686869676,1.0775525,4130.0,4129.8,4.352]
[1758686869876,0.22256727,4129.9,4129.1,0.02]
[1758686870078,0.85420814,4129.6,4129.2,4.10872335]
[1758686870272,0.44926727,4129.5,4129.3,4.355]
[1758686870468,1.07677541,4129.4,4129.3,4.355]
[1758686870676,0.22256727,4129.4,4129.3,4.355]
[1758686871121,0.22256727,4129.4,4129.1,0.02]
[1758686871284,1.28331935,4129.8,4129.2,4.352]
[1758686871285,0.22256727,4129.3,4129.2,4.352]
[1758686871467,0.22256727,4129.3,4129.2,7.22067661]
[1758686872108,1.23403365,4130.0,4129.5,2.42156605]
[1758686872408,1.23403365,4130.0,4129.2,2.42177661]
[1758686872409,0.44884837,4129.9,4129.2,2.42177661]
[1758686872712,0.22214837,4129.8,4129.3,6.447]
[1758686872913,0.22214837,4129.7,4129.4,2.86850865]
[1758686873070,0.37982551,4130.0,4129.5,0.4469]
[1758686873276,0.22214757,4129.9,4129.6,0.8125]
[1758686873577,0.1208,4130.3,4130.2,2.42119025]
[1758686873779,0.34295515,4130.3,4130.2,6.77219025]
[1758686874007,0.34295515,4130.3,4130.2,4.351]
[1758686874224,0.34295515,4130.3,4130.2,6.77219025]
[1758686874511,0.22215515,4130.3,4130.2,6.77219025]
[1758686874809,0.22215515,4130.3,4130.2,7.21909025]
[1758686875108,0.22215515,4130.3,4130.2,4.348]
[1758686875282,0.22215515,4130.3,4130.2,6.76919025]
[1758686875483,0.22215515,4130.3,4130.2,7.46089025]
[1758686875686,0.1208,4130.9,4130.5,2.42100676]
[1758686875908,0.22222571,4130.8,4130.6,4.351]
[1758686876112,0.22222571,4130.7,4130.6,4.351]
[1758686876608,0.22222571,4130.7,4130.6,6.77195579]
[1758686877308,0.22222571,4130.7,4130.6,7.21885579]
[1758686878313,0.22222571,4130.7,4130.6,4.351]
[1758686878611,0.22222571,4130.7,4130.6,6.77195579]
[1758686879003,0.22222571,4130.7,4130.6,7.21885579]
[1758686879199,0.22222571,4130.7,4130.6,4.351]
[1758686879720,0.22222571,4130.7,4130.6,6.77195579]
[1758686880415,0.73557857,4130.7,4130.6,6.77195579]
[1758686880593,0.22222571,4130.7,4130.6,6.77195579]
[1758686882279,0.1208,4130.9,4130.8,2.42083857]
[1758686882485,0.34415836,4130.9,4130.8,6.75383857]
[1758686882683,0.57085836,4130.9,4130.8,6.75383857]
[1758686882908,0.34415836,4130.9,4130.8,6.75383857]
[1758686884723,0.34415836,4130.9,4130.8,4.333]
[1758686885225,0.99366176,4130.9,4130.8,4.326]
[1758686885402,0.34415836,4130.9,4130.8,6.74683857]
[1758686886499,0.34415836,4130.9,4128.0,2.4516467]
[1758686886500,0.792,4130.8,4128.0,2.4516467]
[1758686886700,0.792,4130.3,4129.3,2.42166375]
[1758686886927,0.792,4130.6,4129.6,2.42153228]
[1758686886928,0.792,4130.1,4129.6,2.42153228]
[1758686887124,0.792,4130.1,4128.1,0.2648]
[1758686887125,0.792,4129.9,4128.1,0.2648]
[1758686887311,0.792,4129.7,4129.1,4.346]
[1758686887510,0.87289707,4129.6,4129.1,4.346]
[1758686887724,1.57399707,4129.5,4129.1,0.02]
[1758686887925,0.87289707,4129.4,4129.2,4.328]
[1758686888225,0.58425672,4129.3,4129.2,4.328]
[1758686888617,0.35755672,4129.3,4129.2,4.328]
[1758686889217,0.58436018,4129.3,4129.1,0.02]
[1758686889418,1.2664,4129.2,4129.1,0.02]
[1758686889642,1.62405878,4129.2,4129.1,0.02]
[1758686890050,1.85075878,4129.2,4129.1,0.02]
[1758686890418,1.62722204,4129.2,4129.1,0.02]
[1758686890618,1.4931,4129.2,4129.1,0.02]
[1758686891568,5.16711688,4129.2,4129.1,0.02]
[1758686892219,4.6522218,4129.2,4129.1,0.02]
[1758686893440,7.6522218,4129.2,4129.1,0.02]
[1758686893755,8.16532848,4129.2,4129.1,0.02]
[1758686894121,5.22904519,4129.2,4129.1,0.02]
[1758686894350,4.52934519,4129.2,4129.1,0.02]
[1758686894554,1.52934519,4129.2,4129.1,0.02]
[1758686894819,2.22904519,4129.2,4129.1,0.02]
[1758686895120,4.6508218,4129.2,4129.1,0.02]
[1758686895654,0.792,4129.1,4128.1,3.033]
[1758686895856,0.37986566,4129.2,4128.2,0.7107]
[1758686896056,0.13387633,4130.0,4129.2,2.42174263]
[1758686896265,0.37983029,4129.9,4128.1,0.02]
[1758686896434,0.61023029,4129.9,4128.2,5.0267]
[1758686896636,0.1208,4129.3,4129.0,2.42188886]
[1758686897057,0.1208,4129.3,4129.2,2.42177661]
[1758686897305,0.13388262,4129.3,4129.0,4.316]
[1758686897420,0.1208,4129.1,4129.0,4.316]
[1758686897855,0.1208,4129.1,4128.7,4.316]
[1758686898062,2.42175,4129.3,4128.7,4.316]
[1758686898243,0.92584143,4129.2,4128.5,4.316]
[1758686898450,0.792,4129.0,4128.3,2.096]
[1758686898647,0.792,4129.0,4128.5,4.316]
[1758686899740,0.792,4129.0,4128.1,0.4875]
[1758686900047,0.792,4128.8,4128.2,1.722]
[1758686900641,2.42207703,4128.7,4128.1,0.4875]
[1758686900862,0.792,4128.8,4128.1,0.02]
[1758686901102,0.792,4128.4,4128.1,0.02]
[1758686901788,1.0224,4128.4,4128.1,0.02]
[1758686902270,0.792,4128.7,4128.2,0.4675]
[1758686902429,0.792,4129.0,4128.2,0.2432]
[1758686902634,0.792,4128.8,4128.1,0.02]
[1758686903569,0.37990304,4129.2,4128.1,0.02]
[1758686903731,0.792,4129.0,4128.1,0.02]
[1758686904147,0.792,4128.8,4128.1,0.02]
[1758686904566,3.6997,4129.1,4128.1,0.02]
[1758686904567,2.6524821,4128.7,4128.1,0.02]
[1758686904772,3.03238157,4128.7,4128.1,0.02]
[1758686904994,3.03239478,4128.7,4128.1,0.02]
[1758686905790,3.03241866,4128.7,4128.1,0.02]
[1758686905990,3.03238227,4128.7,4128.1,0.02]
[1758686906195,0.61029947,4128.7,4128.1,0.02]
[1758686906598,0.792,4128.6,4128.1,0.02]
[1758686906756,0.37989947,4128.7,4128.2,0.02422363]
[1758686906963,0.37989947,4128.7,4128.1,0.02]
[1758686907808,2.80197775,4128.7,4128.1,0.02]
[1758686907969,2.42224894,4128.4,4128.1,0.02]
[1758686908169,2.42232035,4128.3,4128.1,0.02]
[1758686908423,0.6997,4128.3,4128.1,0.02]
[1758686908635,0.792,4128.6,4128.1,0.02]
[1758686908758,3.91406325,4128.2,4128.1,0.02]
[1758686909202,6.91406325,4128.2,4128.1,0.02]
[1758686909511,14.17478754,4128.2,4128.1,0.02]
[1758686909721,14.29860957,4128.2,4128.1,0.02]
[1758686910009,14.17478754,4128.2,4128.1,0.02]
[1758686910510,14.17978754,4128.2,4128.1,0.02]
[1758686910808,7.78278754,4128.2,4128.1,0.02]
[1758686911310,8.3204,4128.2,4128.1,0.02]
[1758686911467,11.34559035,4128.2,4128.1,0.02]
[1758686911798,4.6252271,4128.2,4128.1,0.02]
[1758686911999,4.0224,4128.2,4128.1,0.02]
[1758686912300,4.84793839,4128.2,4128.1,0.02]
[1758686912463,4.15599512,4128.2,4128.1,0.02]
[1758686912802,3.0,4128.2,4128.1,0.02]
[1758686912977,4.296,4128.5,4128.1,0.02]
[1758686913168,7.296,4128.6,4128.1,0.02]
[1758686913368,5.55586571,4128.5,4128.1,0.02]
[1758686913600,0.792,4128.3,4128.1,0.02]
[1758686914003,4.294,4128.8,4128.1,0.4875]
[1758686914305,0.792,4128.2,4128.1,0.02]
[1758686914660,0.3799623,4128.3,4128.1,0.02]
[1758686914891,0.3799623,4128.3,4128.2,2.42236325]
[1758686915164,2.42195257,4128.9,4128.1,0.02]
[1758686915359,4.294,4129.3,4128.1,0.02]
[1758686915360,0.37991187,4128.8,4128.2,0.4675]
[1758686915704,0.37991187,4128.8,4128.3,0.2432]
[1758686916082,0.37991187,4128.8,4128.1,0.02]
[1758686916574,3.57173595,4128.7,4128.1,0.02]
[1758686916786,2.42235035,4128.3,4128.1,0.02]
[1758686916983,0.13411637,4128.2,4128.1,0.02]
[1758686917182,2.55647962,4128.2,4128.1,0.02]
[1758686917383,0.35765273,4128.2,4128.1,0.02]
[1758686917587,0.73760685,4128.2,4128.1,0.02]
[1758686917814,3.72843374,4128.2,4128.1,0.02]
[1758686918011,4.18236636,4128.2,4128.1,0.02]
[1758686918366,4.27171224,4128.2,4128.1,0.02]
[1758686918578,4.78676241,4128.2,4128.1,0.02]
[1758686918778,3.80241224,4128.2,4128.1,0.02]
[1758686918977,1.14964899,4128.2,4128.1,0.02]
[1758686919417,0.13411637,4128.2,4128.1,0.02]
[1758686919770,3.34847962,4128.2,4128.1,0.02]
[1758686920099,0.13411637,4128.2,4128.1,0.02]
[1758686920299,0.13411637,4128.2,4128.1,0.4875]
[1758686920511,0.13411637,4128.2,4128.1,0.02]
[1758686920714,0.35770849,4128.2,4128.1,0.02]
[1758686920920,0.35770849,4128.2,4128.1,0.4875]
[1758686920921,0.13411637,4128.2,4128.1,0.4875]
[1758686921071,0.1208,4128.3,4128.1,0.7307]
[1758686921276,0.1208,4128.5,4128.2,0.7107]
[1758686921506,0.1208,4128.5,4128.3,0.6969]
[1758686921814,0.1208,4128.5,4128.1,0.02]
[1758686922532,3.21436325,4128.2,4128.1,0.02]
[1758686922671,7.76355965,4128.2,4128.1,0.02]
[1758686923506,6.21442193,4128.1,4128.0,1e-08]
[1758686923709,7.08791833,4128.1,4128.0,1e-08]
[1758686923912,7.76361833,4128.1,4128.0,1e-08]
[1758686924130,8.61782647,4128.1,4128.0,1e-08]
[1758686924644,3.21495018,4127.2,4127.1,0.02]
[1758686924922,11.39244658,4127.2,4127.1,0.02]
[1758686925228,12.06814658,4127.2,4127.1,0.02]
[1758686925386,12.44822665,4127.2,4127.1,0.02]
[1758686926008,7.46852665,4127.2,4127.1,0.02]
[1758686926229,11.54572486,4127.2,4127.1,0.02]
[1758686926410,11.76934512,4127.2,4127.1,0.02]
[1758686926607,7.70054512,4127.2,4127.1,0.02]
[1758686926927,11.76934512,4127.2,4127.1,0.02]
[1758686927091,11.38926505,4127.2,4127.1,0.02]
[1758686927289,8.96631487,4127.2,4127.1,0.02]
[1758686927503,11.38826505,4127.2,4127.1,0.02]
[1758686928129,8.96531487,4127.2,4127.1,0.02]
[1758686928503,11.38826505,4127.2,4127.1,0.02]
[1758686929306,4.66531487,4127.2,4127.1,0.02]
[1758686929508,4.14990133,4127.2,4127.1,0.02]
[1758686929708,0.92628107,4127.2,4127.1,0.02]
[1758686929909,0.13428107,4127.2,4127.1,0.02]
[1758686930232,4.294,4127.7,4127.1,0.02]